{"text_format":"1","workbook":"xlsx","n_sheets":6,"sheets":["rapot","leger","deskripsi","Ekskul","DUDI","Prestasi"],"not_rendered":{"charts":0,"images":2,"macros":1,"external_links":1,"defined_names":2,"comments":0,"pivot_tables":0},"unopened":[],"bounds":{"document_bytes":16777216,"sheet_cells":100000,"rows_first":2000,"rows_last":500,"rows_between":2000,"halvings":0,"cell_chars":16384,"cell_head_chars":4096},"cells_cut":0,"cells_raw":0,"read":"whole","date_system":"1900"}

{"sheet":"rapot","index":0,"n_rows":82,"n_cols":15,"rows_kept":82,"cut":false,"hidden":false,"merged":[[33,11,33,12],[38,11,38,12],[45,7,45,8],[58,0,58,1],[59,0,59,1],[57,7,57,8],[57,9,57,13],[51,0,51,1],[52,0,52,1],[53,0,53,1],[54,0,54,1],[51,7,51,12],[52,7,52,12],[53,7,53,12],[54,7,54,12],[28,11,28,12],[29,11,29,12],[30,11,30,12],[32,11,32,12],[36,11,36,12],[69,0,69,2],[74,0,74,2],[68,0,68,2],[0,0,0,13],[1,0,1,13],[3,0,3,2],[4,0,4,2],[5,0,5,2],[6,0,6,2],[14,2,15,4],[17,2,17,4],[18,2,18,4],[19,2,19,4],[20,2,20,4],[24,2,24,4],[11,1,11,13],[17,11,17,12],[45,0,45,1],[15,11,15,12],[28,0,28,1],[29,0,29,1],[46,0,46,1],[47,0,47,1],[48,0,48,1],[45,2,45,6],[25,2,25,4],[60,0,60,1],[57,0,57,1],[57,2,57,6],[28,2,28,4],[29,2,29,4],[30,2,30,4],[32,2,32,4],[36,2,36,4],[38,2,38,4],[24,11,24,12],[25,11,25,12],[34,0,34,1],[14,9,14,13],[58,7,58,8],[59,7,59,8],[60,7,60,8],[30,0,30,1],[31,0,31,1],[32,0,32,1],[33,0,33,1],[36,0,36,1],[37,0,37,1],[38,0,38,1],[14,5,14,8],[14,0,15,1],[16,0,16,1],[17,0,17,1],[18,0,18,1],[23,0,23,1],[24,0,24,1],[25,0,25,1],[26,0,26,1],[27,0,27,1],[18,11,18,12],[19,11,19,12],[20,11,20,12],[21,11,21,12],[22,11,22,12],[19,0,19,1],[20,0,20,1],[21,0,21,1],[22,0,22,1],[21,2,21,4],[22,2,22,4],[76,5,76,9],[81,5,81,9],[34,11,34,12],[35,0,35,1],[35,11,35,12],[39,0,39,1],[39,2,39,4],[39,11,39,12],[63,0,63,5],[45,9,45,10],[45,11,45,13]]}
[null,null,null,null,null,null,null,null,null,null,null,null,null,null,1]
[]
[]
["Nama Siswa",null,null,": ",{"$f":"VLOOKUP($O$1,leger!$A$6:$AW$49,3)","v":"Adi Ismail"},null,null,null,null,"Kompetensi Keahlian",null,null,": Teknik Komputer dan Jaringan"]
["No. Induk Siswa",null,null,": ",{"$f":"VLOOKUP($O$1,leger!$A$6:$AW$49,2)","v":1023},null,null,null,null,"Tingkat",null,null,": XI (Sebelas)"]
["Bidang Studi Keahlian",null,null,": ","Teknologi Informasi dan Komunikasi",null,null,null,null,"Semester",null,null,": Semester 3 (Ganjil) "]
["Program Studi Keahlian",null,null,": ","Teknik Komputer dan Informatika",null,null,null,null,"Tahun Pelajaran",null,null,": 2017 / 2018"]
[]
["CAPAIAN HASIL BELAJAR"]
["A. SIKAP"]
[null,"Deskripsi     :"]
[null,{"$f":"VLOOKUP($O$1,leger!$A$6:$AW$49,46)","v":"Selalu bersyukur, selalu berdoa sebelum melakukan kegiatan, toleran pada agama yang berbeda dan perlu meningkatkan ketaatan beribadah serta selalu bersikap santun, peduli,  percaya diri, dan perlu meningkatkan sikap jujur, disiplin, dan tanggungjawab"}]
[]
["B. PENGETAHUAN DAN KETERAMPILAN"]
["No",null,"Mata Pelajaran",null,null,"Pengetahuan",null,null,null,"Keterampilan"]
[null,null,null,null,null,"KKM","Angka","Predikat","Deskripsi","KKM","Angka","Predikat",null,"Deskripsi"]
["I",null,"Kelompok A (Wajib)"]
[1,null,"Pendidikan Agama dan Budi Pekerti",null,null,75,{"$f":"ROUNDUP(VLOOKUP($O$1,leger!$A$6:$AW$49,4),0)","v":0},{"$f":"IF(G18>91,\"A\",IF(G18>82,\"B\",IF(G18>74,\"C\",\"D\")))","v":"D"},{"$f":"VLOOKUP($O$1,deskripsi!$A$5:$AK$48,4)","v":"contoh"},75,{"$f":"ROUNDUP(VLOOKUP($O$1,leger!$A$6:$AW$49,5),0)","v":0},{"$f":"IF(K18>91,\"A\",IF(K18>82,\"B\",IF(K18>74,\"C\",\"D\")))","v":"D"},"A",{"$f":"VLOOKUP($O$1,deskripsi!$A$5:$AK$48,5)","v":"contoh"}]
[2,null,"Pendidikan Pancasila dan Kewarganegaraan",null,null,75,{"$f":"ROUNDUP(VLOOKUP($O$1,leger!$A$6:$AW$49,6),0)","v":0},{"$f":"IF(G19>91,\"A\",IF(G19>82,\"B\",IF(G19>74,\"C\",\"D\")))","v":"D"},{"$f":"VLOOKUP($O$1,deskripsi!$A$5:$AK$48,6)","v":0},75,{"$f":"ROUNDUP(VLOOKUP($O$1,leger!$A$6:$AW$49,7),0)","v":0},{"$f":"IF(K19>91,\"A\",IF(K19>82,\"B\",IF(K19>74,\"C\",\"D\")))","v":"D"},"A",{"$f":"VLOOKUP($O$1,deskripsi!$A$5:$AK$48,7)","v":0}]
[3,null,"Bahasa Indonesia",null,null,75,{"$f":"ROUNDUP(VLOOKUP($O$1,leger!$A$6:$AW$49,8),0)","v":0},"D",{"$f":"VLOOKUP($O$1,deskripsi!$A$5:$AK$48,8)","v":0},75,{"$f":"ROUNDUP(VLOOKUP($O$1,leger!$A$6:$AW$49,9),0)","v":0},{"$f":"IF(K20>91,\"A\",IF(K20>82,\"B\",IF(K20>74,\"C\",\"D\")))","v":"D"},"A",{"$f":"VLOOKUP($O$1,deskripsi!$A$5:$AK$48,9)","v":0}]
[4,null,"Matematika",null,null,75,{"$f":"ROUNDUP(VLOOKUP($O$1,leger!$A$6:$AW$49,10),0)","v":0},"D",{"$f":"VLOOKUP($O$1,deskripsi!$A$5:$AK$48,10)","v":0},75,{"$f":"ROUNDUP(VLOOKUP($O$1,leger!$A$6:$AW$49,11),0)","v":0},{"$f":"IF(K21>91,\"A\",IF(K21>82,\"B\",IF(K21>74,\"C\",\"D\")))","v":"D"},"A",{"$f":"VLOOKUP($O$1,deskripsi!$A$5:$AK$48,11)","v":0}]
[5,null,"Sejarah Indonesia",null,null,75,{"$f":"ROUNDUP(VLOOKUP($O$1,leger!$A$6:$AW$49,12),0)","v":0},"D",{"$f":"VLOOKUP($O$1,deskripsi!$A$5:$AK$48,12)","v":0},75,{"$f":"ROUNDUP(VLOOKUP($O$1,leger!$A$6:$AW$49,13),0)","v":0},{"$f":"IF(K22>91,\"A\",IF(K22>82,\"B\",IF(K22>74,\"C\",\"D\")))","v":"D"},"A",{"$f":"VLOOKUP($O$1,deskripsi!$A$5:$AK$48,13)","v":0}]
[6,null,"Bahasa Inggris",null,null,75,{"$f":"ROUNDUP(VLOOKUP($O$1,leger!$A$6:$AW$49,14),0)","v":0},"D",{"$f":"VLOOKUP($O$1,deskripsi!$A$5:$AK$48,14)","v":0},75,{"$f":"ROUNDUP(VLOOKUP($O$1,leger!$A$6:$AW$49,15),0)","v":0},{"$f":"IF(K23>91,\"A\",IF(K23>82,\"B\",IF(K23>74,\"C\",\"D\")))","v":"D"},"A",{"$f":"VLOOKUP($O$1,deskripsi!$A$5:$AK$48,15)","v":0}]
["II",null,"Kelompok B (Wajib)"]
[1,null,"Prakarya dan Kewirausahaan",null,null,75,{"$f":"ROUNDUP(VLOOKUP($O$1,leger!$A$6:$AW$49,16),0)","v":0},{"$f":"IF(G25>91,\"A\",IF(G25>82,\"B\",IF(G25>74,\"C\",\"D\")))","v":"D"},{"$f":"VLOOKUP($O$1,deskripsi!$A$5:$AK$48,16)","v":0},75,{"$f":"ROUNDUP(VLOOKUP($O$1,leger!$A$6:$AW$49,17),0)","v":0},{"$f":"IF(K25>91,\"A\",IF(K25>82,\"B\",IF(K25>74,\"C\",\"D\")))","v":"D"},"A",{"$f":"VLOOKUP($O$1,deskripsi!$A$5:$AK$48,17)","v":0}]
[2,null,"Pendidikan Jasmani, Olahraga dan Kesehatan",null,null,75,{"$f":"ROUNDUP(VLOOKUP($O$1,leger!$A$6:$AW$49,18),0)","v":0},"D",{"$f":"VLOOKUP($O$1,deskripsi!$A$5:$AK$48,18)","v":0},75,{"$f":"ROUNDUP(VLOOKUP($O$1,leger!$A$6:$AW$49,19),0)","v":0},{"$f":"IF(K26>91,\"A\",IF(K26>82,\"B\",IF(K26>74,\"C\",\"D\")))","v":"D"},"A",{"$f":"VLOOKUP($O$1,deskripsi!$A$5:$AK$48,19)","v":0}]
["III",null,"Kelompok C (Peminatan)"]
[null,null,"C1. Dasar Bidang Keahlian"]
[1,null,"Simulasi Digital",null,null,75,{"$f":"ROUNDUP(VLOOKUP($O$1,leger!$A$6:$AW$49,20),0)","v":0},{"$f":"IF(G29>85,\"A\",IF(G29>70,\"B\",IF(G29>55,\"C\",\"D\")))","v":"D"},{"$f":"VLOOKUP($O$1,deskripsi!$A$5:$AK$48,20)","v":0},75,{"$f":"ROUNDUP(VLOOKUP($O$1,leger!$A$6:$AW$49,21),0)","v":0},{"$f":"IF(K29>85,\"A\",IF(K29>70,\"B\",IF(K29>55,\"C\",\"D\")))","v":"D"},"A",{"$f":"VLOOKUP($O$1,deskripsi!$A$5:$AK$48,21)","v":0}]
[1,null,"Pengantar Ekonomi Bisnis",null,null,75,{"$f":"ROUNDUP(VLOOKUP($O$1,leger!$A$6:$AW$49,22),0)","v":0},{"$f":"IF(G30>91,\"A\",IF(G30>82,\"B\",IF(G30>74,\"C\",\"D\")))","v":"D"},{"$f":"VLOOKUP($O$1,deskripsi!$A$5:$AK$48,22)","v":0},75,{"$f":"ROUNDUP(VLOOKUP($O$1,leger!$A$6:$AW$49,23),0)","v":0},{"$f":"IF(K30>91,\"A\",IF(K30>82,\"B\",IF(K30>74,\"C\",\"D\")))","v":"D"},"A",{"$f":"VLOOKUP($O$1,deskripsi!$A$5:$AK$48,23)","v":0}]
[2,null,"Administrasi Umum",null,null,75,{"$f":"ROUNDUP(VLOOKUP($O$1,leger!$A$6:$AW$49,24),0)","v":0},"D",{"$f":"VLOOKUP($O$1,deskripsi!$A$5:$AK$48,24)","v":0},75,{"$f":"ROUNDUP(VLOOKUP($O$1,leger!$A$6:$AW$49,25),0)","v":0},{"$f":"IF(K31>91,\"A\",IF(K31>82,\"B\",IF(K31>74,\"C\",\"D\")))","v":"D"},"A",{"$f":"VLOOKUP($O$1,deskripsi!$A$5:$AK$48,25)","v":0}]
[null,null,"C3. Paket Keahlian"]
[1,null,"Teknologi Infrastruktur",null,null,75,{"$f":"ROUNDUP(VLOOKUP($O$1,leger!$A$6:$AW$49,26),0)","v":0},{"$f":"IF(G33>91,\"A\",IF(G33>82,\"B\",IF(G33>74,\"C\",\"D\")))","v":"D"},{"$f":"VLOOKUP($O$1,deskripsi!$A$5:$AK$48,26)","v":0},75,{"$f":"ROUNDUP(VLOOKUP($O$1,leger!$A$6:$AW$49,27),0)","v":0},{"$f":"IF(K33>91,\"A\",IF(K33>82,\"B\",IF(K33>74,\"C\",\"D\")))","v":"D"},"A",{"$f":"VLOOKUP($O$1,deskripsi!$A$5:$AK$48,27)","v":0}]
[2,null,"Rancang Bangun Jaringan",null,null,75,{"$f":"ROUNDUP(VLOOKUP($O$1,leger!$A$6:$AW$49,28),0)","v":0},"D",{"$f":"VLOOKUP($O$1,deskripsi!$A$5:$AK$48,28)","v":0},75,{"$f":"ROUNDUP(VLOOKUP($O$1,leger!$A$6:$AW$49,29),0)","v":0},{"$f":"IF(K34>91,\"A\",IF(K34>82,\"B\",IF(K34>74,\"C\",\"D\")))","v":"D"},"A",{"$f":"VLOOKUP($O$1,deskripsi!$A$5:$AK$48,29)","v":0}]
[3,null,"Administrasi Server dan Keamanan Jaringan",null,null,75,{"$f":"ROUNDUP(VLOOKUP($O$1,leger!$A$6:$AW$49,30),0)","v":0},"D",{"$f":"VLOOKUP($O$1,deskripsi!$A$5:$AK$48,28)","v":0},75,{"$f":"ROUNDUP(VLOOKUP($O$1,leger!$A$6:$AW$49,31),0)","v":0},{"$f":"IF(K35>91,\"A\",IF(K35>82,\"B\",IF(K35>74,\"C\",\"D\")))","v":"D"},"A",{"$f":"VLOOKUP($O$1,deskripsi!$A$5:$AK$48,29)","v":0}]
[4,null,"Desain Media Interaktif",null,null,75,{"$f":"ROUNDUP(VLOOKUP($O$1,leger!$A$6:$AW$49,32),0)","v":0},"D",{"$f":"VLOOKUP($O$1,deskripsi!$A$5:$AK$48,28)","v":0},75,{"$f":"ROUNDUP(VLOOKUP($O$1,leger!$A$6:$AW$49,33),0)","v":0},{"$f":"IF(K36>91,\"A\",IF(K36>82,\"B\",IF(K36>74,\"C\",\"D\")))","v":"D"},"A",{"$f":"VLOOKUP($O$1,deskripsi!$A$5:$AK$48,29)","v":0}]
[5,null,"Pengembangan Produk Kreatif",null,null,75,{"$f":"ROUNDUP(VLOOKUP($O$1,leger!$A$6:$AW$49,34),0)","v":0},"D",{"$f":"VLOOKUP($O$1,deskripsi!$A$5:$AK$48,30)","v":0},75,{"$f":"ROUNDUP(VLOOKUP($O$1,leger!$A$6:$AW$49,35),0)","v":0},{"$f":"IF(K37>91,\"A\",IF(K37>82,\"B\",IF(K37>74,\"C\",\"D\")))","v":"D"},"A",{"$f":"VLOOKUP($O$1,deskripsi!$A$5:$AK$48,31)","v":0}]
["IV",null,"Muatan Lokal"]
[1,null,"Bussiness English",null,null,75,{"$f":"ROUNDUP(VLOOKUP($O$1,leger!$A$6:$AW$49,36),0)","v":0},{"$f":"IF(G39>91,\"A\",IF(G39>82,\"B\",IF(G39>74,\"C\",\"D\")))","v":"D"},{"$f":"VLOOKUP($O$1,deskripsi!$A$5:$AK$48,32)","v":0},75,{"$f":"ROUNDUP(VLOOKUP($O$1,leger!$A$6:$AW$49,37),0)","v":0},{"$f":"IF(K39>91,\"A\",IF(K39>82,\"B\",IF(K39>74,\"C\",\"D\")))","v":"D"},"A",{"$f":"VLOOKUP($O$1,deskripsi!$A$5:$AK$48,33)","v":0}]
[2,null,"Siklus Akuntansi",null,null,75,{"$f":"ROUNDUP(VLOOKUP($O$1,leger!$A$6:$AW$49,34),0)","v":0},{"$f":"IF(G40>85,\"A\",IF(G40>70,\"B\",IF(G40>55,\"C\",\"D\")))","v":"D"},{"$f":"VLOOKUP($O$1,deskripsi!$A$5:$AK$48,34)","v":0},75,{"$f":"ROUNDUP(VLOOKUP($O$1,leger!$A$6:$AW$49,35),0)","v":0},{"$f":"IF(K40>85,\"A\",IF(K40>70,\"B\",IF(K40>55,\"C\",\"D\")))","v":"D"},{"$f":"IF(L40>85,\"A\",IF(L40>70,\"B\",IF(L40>55,\"C\",\"D\")))","v":"A"},{"$f":"VLOOKUP($O$1,deskripsi!$A$5:$AK$48,35)","v":0}]
[null,null,null,"Rata-Rata",null,{"$f":"VLOOKUP($O$1,leger!$A$6:$AW$49,40)","v":0}]
[null,null,null,"Peringkat Kelas",null,{"$f":"VLOOKUP($O$1,leger!$A$6:$AW$49,42)","v":1}]
[]
[]
["C. Praktik Kerja Lapangan"]
["No",null,"Mitra DU/DI",null,null,null,null,"Lokasi",null,"Lamanya",null,"Keterangan"]
[1]
[2]
[3]
[]
["D. Ekstra Kurikuler"]
["No",null,"Kegiatan Ekstra Kurikuler",null,null,null,"Nilai","Keterangan"]
[1,null,{"$f":"VLOOKUP($O$1,Ekskul!$A$4:$M$47,4)","v":"Praja Muda Karana (Pramuka)"},null,null,null,{"$f":"VLOOKUP($O$1,Ekskul!$A$4:$M$47,7)","v":"A"},{"$f":"VLOOKUP($O$1,Ekskul!$A$4:$M$47,10)","v":"Melaksanakan kegiatan pramuka dengan Sangat Baik"},{"$f":"VLOOKUP($O$1,Ekskul!$A$4:$M$47,4)","v":"Praja Muda Karana (Pramuka)"},{"$f":"VLOOKUP($O$1,Ekskul!$A$4:$M$47,4)","v":"Praja Muda Karana (Pramuka)"},{"$f":"VLOOKUP($O$1,Ekskul!$A$4:$M$47,4)","v":"Praja Muda Karana (Pramuka)"},{"$f":"VLOOKUP($O$1,Ekskul!$A$4:$M$47,4)","v":"Praja Muda Karana (Pramuka)"},{"$f":"VLOOKUP($O$1,Ekskul!$A$4:$M$47,4)","v":"Praja Muda Karana (Pramuka)"}]
[2,null,{"$f":"VLOOKUP($O$1,Ekskul!$A$4:$M$47,5)","v":"Silat"},null,null,null,{"$f":"VLOOKUP($O$1,Ekskul!$A$4:$M$47,8)","v":"B"},{"$f":"VLOOKUP($O$1,Ekskul!$A$4:$M$47,11)","v":"Melaksanakan kegiatan Silat dengan Baik"},{"$f":"VLOOKUP($O$1,Ekskul!$A$4:$M$47,4)","v":"Praja Muda Karana (Pramuka)"},{"$f":"VLOOKUP($O$1,Ekskul!$A$4:$M$47,4)","v":"Praja Muda Karana (Pramuka)"},{"$f":"VLOOKUP($O$1,Ekskul!$A$4:$M$47,4)","v":"Praja Muda Karana (Pramuka)"},{"$f":"VLOOKUP($O$1,Ekskul!$A$4:$M$47,4)","v":"Praja Muda Karana (Pramuka)"},{"$f":"VLOOKUP($O$1,Ekskul!$A$4:$M$47,4)","v":"Praja Muda Karana (Pramuka)"}]
[3,null,{"$f":"VLOOKUP($O$1,Ekskul!$A$4:$M$47,6)","v":0},null,null,null,{"$f":"VLOOKUP($O$1,Ekskul!$A$4:$M$47,9)","v":0},{"$f":"VLOOKUP($O$1,Ekskul!$A$4:$M$47,12)","v":""},{"$f":"VLOOKUP($O$1,Ekskul!$A$4:$M$47,4)","v":"Praja Muda Karana (Pramuka)"},{"$f":"VLOOKUP($O$1,Ekskul!$A$4:$M$47,4)","v":"Praja Muda Karana (Pramuka)"},{"$f":"VLOOKUP($O$1,Ekskul!$A$4:$M$47,4)","v":"Praja Muda Karana (Pramuka)"},{"$f":"VLOOKUP($O$1,Ekskul!$A$4:$M$47,4)","v":"Praja Muda Karana (Pramuka)"},{"$f":"VLOOKUP($O$1,Ekskul!$A$4:$M$47,4)","v":"Praja Muda Karana (Pramuka)"}]
[]
["E. Prestasi"]
["No",null,"Jenis Prestasi",null,null,null,null,"Peringkat",null,"Keterangan"]
[1,null,{"$f":"VLOOKUP($O$1,Prestasi!$A$4:$L$47,4)","v":"Juara lomba lari tingkat Kecamatan"},null,null,null,null,{"$f":"VLOOKUP($O$1,Prestasi!$A$4:$L$47,7)","v":3},null,{"$f":"VLOOKUP($O$1,Prestasi!$A$4:$L$47,10)","v":"lomba lari tingkat kecamatan jagakarsa"}]
[2,null,{"$f":"VLOOKUP($O$1,Prestasi!$A$4:$L$47,5)","v":0},null,null,null,null,{"$f":"VLOOKUP($O$1,Prestasi!$A$4:$L$47,8)","v":0},null,{"$f":"VLOOKUP($O$1,Prestasi!$A$4:$L$47,11)","v":0}]
[3,null,{"$f":"VLOOKUP($O$1,Prestasi!$A$4:$L$47,6)","v":0},null,null,null,null,{"$f":"VLOOKUP($O$1,Prestasi!$A$4:$L$47,9)","v":0},null,{"$f":"VLOOKUP($O$1,Prestasi!$A$4:$L$47,12)","v":0}]
[]
["F. Ketidakhadiran"]
["Ketidakhadiran"]
["1. Sakit                         ",null,null,":",{"$f":"VLOOKUP($O$1,leger!$A$6:$AW$49,47)","v":2},"Hari"]
["2. Izin                            ",null,null,":",{"$f":"VLOOKUP($O$1,leger!$A$6:$AW$49,48)","v":1},"Hari"]
["3. Tanpa keterangan       ",null,null,":",{"$f":"VLOOKUP($O$1,leger!$A$6:$AW$49,49)","v":0},"Hari"]
[]
["Mengetahui,",null,null,null,null,null,null,null,null,null,null,null,"Jakarta, 22 Desember 2017"]
["Orang Tua/Wali",null,null,null,null,null,null,null,null,null,null,null,"Wali kelas"]
[]
[]
[]
[]
["---------------------------------",null,null,null,null,null,null,null,null,null,null,null,"NUR AINI, S.Psi"]
[]
[null,null,null,null,null,"Kepala Sekolah"]
[]
[]
[]
[]
[null,null,null,null,null,"MINI WARYANTI. S.Pd."]

{"sheet":"leger","index":1,"n_rows":56,"n_cols":49,"rows_kept":56,"cut":false,"hidden":false,"merged":[[3,13,3,14],[3,15,3,16],[3,17,3,18],[3,37,3,38],[3,21,3,22],[3,23,3,24],[3,25,3,26],[3,29,3,30],[3,31,3,32],[3,35,3,36],[3,19,3,20],[3,27,3,28],[3,33,3,34],[3,3,3,4],[3,5,3,6],[3,7,3,8],[3,9,3,10],[3,11,3,12]]}
[]
[1,2,3,4,5,6,7,8,9,10,11,12,13,14,15,16,17,18,19,20,21,22,23,24,25,26,27,28,29,30,31,32,33,34,35,36,37,38,39,40,41,42,43,44,45,46,47,48,49]
[]
["No.","NIS","Nama Siswa","PAI",null,"PKN",null,"B.Ind",null,"MTK",null,"Sejarah",null,"B.Ing",null,"KWU",null,"Penjasor",null,"Simdig",null,"P.komBisnis",null,"Adm Umum",null,"Tek.Inf. Jar",null,"RBJ",null,"Adm Server",null,"DMI",null,"PPK",null,"Buss. English",null,"Siklus Akun",null,"jml nilai","Rata2","rank","eks1","eks2","eks3","deskripsi siswa","S","I","A"]
[null,null,null,"KI 3","KI 4","KI 3","KI 4","KI 3","KI 4","KI 3","KI 4","KI 3","KI 4","KI 3","KI 4","KI 3","KI 4","KI 3","KI 4","KI 3","KI 4","KI 3","KI 4","KI 3","KI 4","KI 3","KI 4","KI 3","KI 4","KI 3","KI 4","KI 3","KI 4","KI 3","KI 4","KI 3","KI 4","KI 3","KI 4"]
[1,1023,"Adi Ismail",null,null,null,null,null,null,null,null,null,null,null,null,null,null,null,null,null,null,null,null,null,null,null,null,null,null,null,null,null,null,null,null,null,null,null,null,{"$f":"SUM(E6:AM6)","v":0},{"$f":"AVERAGE(D6:AM6)","v":{"$error":"#DIV/0!"}},{"$f":"RANK(AN6,$AN$6:$AN$49)","v":1},null,null,null,"Selalu bersyukur, selalu berdoa sebelum melakukan kegiatan, toleran pada agama yang berbeda dan perlu meningkatkan ketaatan beribadah serta selalu bersikap santun, peduli,  percaya diri, dan perlu meningkatkan sikap jujur, disiplin, dan tanggungjawab",2,1]
[2,1025,"Adilla Reysan ",null,null,null,null,null,null,null,null,null,null,null,null,null,null,null,null,null,null,null,null,null,null,null,null,null,null,null,null,null,null,null,null,null,null,null,null,{"$f":"SUM(F7:AM7)","v":0},{"$error":"#DIV/0!"},{"$f":"RANK(AN7,$AN$6:$AN$49)","v":1},null,null,null,"Selalu bersyukur, selalu berdoa sebelum melakukan kegiatan, toleran pada agama yang berbeda dan perlu meningkatkan ketaatan beribadah serta selalu bersikap santun, peduli,  percaya diri, dan perlu meningkatkan sikap jujur, disiplin, dan tanggungjawab"]
[3,1026,"Aedo Nugroho Wicaksono",null,null,null,null,null,null,null,null,null,null,null,null,null,null,null,null,null,null,null,null,null,null,null,null,null,null,null,null,null,null,null,null,null,null,null,null,0,{"$error":"#DIV/0!"},1,null,null,null,"Selalu bersyukur, selalu berdoa sebelum melakukan kegiatan, toleran pada agama yang berbeda dan perlu meningkatkan ketaatan beribadah serta selalu bersikap santun, peduli,  percaya diri, dan perlu meningkatkan sikap jujur, disiplin, dan tanggungjawab"]
[4,1030,"Ahmad Syaeffullah",null,null,null,null,null,null,null,null,null,null,null,null,null,null,null,null,null,null,null,null,null,null,null,null,null,null,null,null,null,null,null,null,null,null,null,null,0,{"$error":"#DIV/0!"},1,null,null,null,"Selalu bersyukur, selalu berdoa sebelum melakukan kegiatan, toleran pada agama yang berbeda dan perlu meningkatkan ketaatan beribadah serta selalu bersikap santun, peduli,  percaya diri, dan perlu meningkatkan sikap jujur, disiplin, dan tanggungjawab"]
[5,1043,"Andre Putra Pratama",null,null,null,null,null,null,null,null,null,null,null,null,null,null,null,null,null,null,null,null,null,null,null,null,null,null,null,null,null,null,null,null,null,null,null,null,0,{"$error":"#DIV/0!"},1,null,null,null,"Selalu bersyukur, selalu berdoa sebelum melakukan kegiatan, toleran pada agama yang berbeda dan perlu meningkatkan ketaatan beribadah serta selalu bersikap santun, peduli,  percaya diri, dan perlu meningkatkan sikap jujur, disiplin, dan tanggungjawab"]
[6,1046,"Andy Setiawan",null,null,null,null,null,null,null,null,null,null,null,null,null,null,null,null,null,null,null,null,null,null,null,null,null,null,null,null,null,null,null,null,null,null,null,null,0,{"$error":"#DIV/0!"},1,null,null,null,"Selalu bersyukur, selalu berdoa sebelum melakukan kegiatan, toleran pada agama yang berbeda dan perlu meningkatkan ketaatan beribadah serta selalu bersikap santun, peduli,  percaya diri, dan perlu meningkatkan sikap jujur, disiplin, dan tanggungjawab"]
[7,1051,"Anwar Fathoni",null,null,null,null,null,null,null,null,null,null,null,null,null,null,null,null,null,null,null,null,null,null,null,null,null,null,null,null,null,null,null,null,null,null,null,null,0,{"$error":"#DIV/0!"},1,null,null,null,"Selalu bersyukur, selalu berdoa sebelum melakukan kegiatan, toleran pada agama yang berbeda dan perlu meningkatkan ketaatan beribadah serta selalu bersikap santun, peduli,  percaya diri, dan perlu meningkatkan sikap jujur, disiplin, dan tanggungjawab"]
[8,1052,"Anwar Hafid",null,null,null,null,null,null,null,null,null,null,null,null,null,null,null,null,null,null,null,null,null,null,null,null,null,null,null,null,null,null,null,null,null,null,null,null,0,{"$error":"#DIV/0!"},1,null,null,null,"Selalu bersyukur, selalu berdoa sebelum melakukan kegiatan, toleran pada agama yang berbeda dan perlu meningkatkan ketaatan beribadah serta selalu bersikap santun, peduli,  percaya diri, dan perlu meningkatkan sikap jujur, disiplin, dan tanggungjawab"]
[9,1065,"Bayu Rindhita Muharram",null,null,null,null,null,null,null,null,null,null,null,null,null,null,null,null,null,null,null,null,null,null,null,null,null,null,null,null,null,null,null,null,null,null,null,null,0,{"$error":"#DIV/0!"},1,null,null,null,"Selalu bersyukur, selalu berdoa sebelum melakukan kegiatan, toleran pada agama yang berbeda dan perlu meningkatkan ketaatan beribadah serta selalu bersikap santun, peduli,  percaya diri, dan perlu meningkatkan sikap jujur, disiplin, dan tanggungjawab"]
[10,1066,"Berliana Syela Fajrin",null,null,null,null,null,null,null,null,null,null,null,null,null,null,null,null,null,null,null,null,null,null,null,null,null,null,null,null,null,null,null,null,null,null,null,null,0,{"$error":"#DIV/0!"},1,null,null,null,"Selalu bersyukur, selalu berdoa sebelum melakukan kegiatan, toleran pada agama yang berbeda dan perlu meningkatkan ketaatan beribadah serta selalu bersikap santun, peduli,  percaya diri, dan perlu meningkatkan sikap jujur, disiplin, dan tanggungjawab"]
[11,1069,"Danang Busro Cahyo Bekti",null,null,null,null,null,null,null,null,null,null,null,null,null,null,null,null,null,null,null,null,null,null,null,null,null,null,null,null,null,null,null,null,null,null,null,null,0,{"$error":"#DIV/0!"},1,null,null,null,"Selalu bersyukur, selalu berdoa sebelum melakukan kegiatan, toleran pada agama yang berbeda dan perlu meningkatkan ketaatan beribadah serta selalu bersikap santun, peduli,  percaya diri, dan perlu meningkatkan sikap jujur, disiplin, dan tanggungjawab"]
[12,1091,"Faisal Rakhmadhani",null,null,null,null,null,null,null,null,null,null,null,null,null,null,null,null,null,null,null,null,null,null,null,null,null,null,null,null,null,null,null,null,null,null,null,null,0,{"$error":"#DIV/0!"},1,null,null,null,"Selalu bersyukur, selalu berdoa sebelum melakukan kegiatan, toleran pada agama yang berbeda dan perlu meningkatkan ketaatan beribadah serta selalu bersikap santun, peduli,  percaya diri, dan perlu meningkatkan sikap jujur, disiplin, dan tanggungjawab"]
[13,1093,"Fajar Tri Admaja",null,null,null,null,null,null,null,null,null,null,null,null,null,null,null,null,null,null,null,null,null,null,null,null,null,null,null,null,null,null,null,null,null,null,null,null,0,{"$error":"#DIV/0!"},1,null,null,null,"Selalu bersyukur, selalu berdoa sebelum melakukan kegiatan, toleran pada agama yang berbeda dan perlu meningkatkan ketaatan beribadah serta selalu bersikap santun, peduli,  percaya diri, dan perlu meningkatkan sikap jujur, disiplin, dan tanggungjawab"]
[14,1097,"Farhan Maulana",null,null,null,null,null,null,null,null,null,null,null,null,null,null,null,null,null,null,null,null,null,null,null,null,null,null,null,null,null,null,null,null,null,null,null,null,0,{"$error":"#DIV/0!"},1,null,null,null,"Selalu bersyukur, selalu berdoa sebelum melakukan kegiatan, toleran pada agama yang berbeda dan perlu meningkatkan ketaatan beribadah serta selalu bersikap santun, peduli,  percaya diri, dan perlu meningkatkan sikap jujur, disiplin, dan tanggungjawab"]
[15,1108,"Gusniawan",null,null,null,null,null,null,null,null,null,null,null,null,null,null,null,null,null,null,null,null,null,null,null,null,null,null,null,null,null,null,null,null,null,null,null,null,0,{"$error":"#DIV/0!"},1,null,null,null,"Selalu bersyukur, selalu berdoa sebelum melakukan kegiatan, toleran pada agama yang berbeda dan perlu meningkatkan ketaatan beribadah serta selalu bersikap santun, peduli,  percaya diri, dan perlu meningkatkan sikap jujur, disiplin, dan tanggungjawab"]
[16,1113,"Ikbal Maulana Razaaq",null,null,null,null,null,null,null,null,null,null,null,null,null,null,null,null,null,null,null,null,null,null,null,null,null,null,null,null,null,null,null,null,null,null,null,null,0,{"$error":"#DIV/0!"},1,null,null,null,"Selalu bersyukur, selalu berdoa sebelum melakukan kegiatan, toleran pada agama yang berbeda dan perlu meningkatkan ketaatan beribadah serta selalu bersikap santun, peduli,  percaya diri, dan perlu meningkatkan sikap jujur, disiplin, dan tanggungjawab"]
[17,1115,"Imaratif Sapria Nugroho",null,null,null,null,null,null,null,null,null,null,null,null,null,null,null,null,null,null,null,null,null,null,null,null,null,null,null,null,null,null,null,null,null,null,null,null,0,{"$error":"#DIV/0!"},1,null,null,null,"Selalu bersyukur, selalu berdoa sebelum melakukan kegiatan, toleran pada agama yang berbeda dan perlu meningkatkan ketaatan beribadah serta selalu bersikap santun, peduli,  percaya diri, dan perlu meningkatkan sikap jujur, disiplin, dan tanggungjawab"]
[18,1118,"Johan Iryadi",null,null,null,null,null,null,null,null,null,null,null,null,null,null,null,null,null,null,null,null,null,null,null,null,null,null,null,null,null,null,null,null,null,null,null,null,0,{"$error":"#DIV/0!"},1,null,null,null,"Selalu bersyukur, selalu berdoa sebelum melakukan kegiatan, toleran pada agama yang berbeda dan perlu meningkatkan ketaatan beribadah serta selalu bersikap santun, peduli,  percaya diri, dan perlu meningkatkan sikap jujur, disiplin, dan tanggungjawab"]
[19,1130,"Mas Yuni",null,null,null,null,null,null,null,null,null,null,null,null,null,null,null,null,null,null,null,null,null,null,null,null,null,null,null,null,null,null,null,null,null,null,null,null,0,{"$error":"#DIV/0!"},1,null,null,null,"Selalu bersyukur, selalu berdoa sebelum melakukan kegiatan, toleran pada agama yang berbeda dan perlu meningkatkan ketaatan beribadah serta selalu bersikap santun, peduli,  percaya diri, dan perlu meningkatkan sikap jujur, disiplin, dan tanggungjawab"]
[20,1157,"Mohamad Risky Hidayat",null,null,null,null,null,null,null,null,null,null,null,null,null,null,null,null,null,null,null,null,null,null,null,null,null,null,null,null,null,null,null,null,null,null,null,null,0,{"$error":"#DIV/0!"},1,null,"A",null,"Selalu bersyukur, selalu berdoa sebelum melakukan kegiatan, toleran pada agama yang berbeda dan perlu meningkatkan ketaatan beribadah serta selalu bersikap santun, peduli,  percaya diri, dan perlu meningkatkan sikap jujur, disiplin, dan tanggungjawab"]
[21,1136,"Muhamad Arip Fazarsyah",null,null,null,null,null,null,null,null,null,null,null,null,null,null,null,null,null,null,null,null,null,null,null,null,null,null,null,null,null,null,null,null,null,null,null,null,0,{"$error":"#DIV/0!"},1,null,null,null,"Selalu bersyukur, selalu berdoa sebelum melakukan kegiatan, toleran pada agama yang berbeda dan perlu meningkatkan ketaatan beribadah serta selalu bersikap santun, peduli,  percaya diri, dan perlu meningkatkan sikap jujur, disiplin, dan tanggungjawab"]
[22,1138,"Muhamad Hadi Saputra",null,null,null,null,null,null,null,null,null,null,null,null,null,null,null,null,null,null,null,null,null,null,null,null,null,null,null,null,null,null,null,null,null,null,null,null,0,{"$error":"#DIV/0!"},1,null,null,null,"Selalu bersyukur, selalu berdoa sebelum melakukan kegiatan, toleran pada agama yang berbeda dan perlu meningkatkan ketaatan beribadah serta selalu bersikap santun, peduli,  percaya diri, dan perlu meningkatkan sikap jujur, disiplin, dan tanggungjawab"]
[23,1126,"Muhammad Rasyad Zafran Firnadi",null,null,null,null,null,null,null,null,null,null,null,null,null,null,null,null,null,null,null,null,null,null,null,null,null,null,null,null,null,null,null,null,null,null,null,null,0,{"$error":"#DIV/0!"},1,null,null,null,"Selalu bersyukur, selalu berdoa sebelum melakukan kegiatan, toleran pada agama yang berbeda dan perlu meningkatkan ketaatan beribadah serta selalu bersikap santun, peduli,  percaya diri, dan perlu meningkatkan sikap jujur, disiplin, dan tanggungjawab"]
[24,1154,"Muhammad Rifaldy",null,null,null,null,null,null,null,null,null,null,null,null,null,null,null,null,null,null,null,null,null,null,null,null,null,null,null,null,null,null,null,null,null,null,null,null,0,{"$error":"#DIV/0!"},1,null,null,null,"Selalu bersyukur, selalu berdoa sebelum melakukan kegiatan, toleran pada agama yang berbeda dan perlu meningkatkan ketaatan beribadah serta selalu bersikap santun, peduli,  percaya diri, dan perlu meningkatkan sikap jujur, disiplin, dan tanggungjawab"]
[25,1562,"Muhammad Rifky Arief Wichaksono",null,null,null,null,null,null,null,null,null,null,null,null,null,null,null,null,null,null,null,null,null,null,null,null,null,null,null,null,null,null,null,null,null,null,null,null,0,{"$error":"#DIV/0!"},1,null,"A",null,"Selalu bersyukur, selalu berdoa sebelum melakukan kegiatan, toleran pada agama yang berbeda dan perlu meningkatkan ketaatan beribadah serta selalu bersikap santun, peduli,  percaya diri, dan perlu meningkatkan sikap jujur, disiplin, dan tanggungjawab"]
[26,1158,"Muhammad Rizky",null,null,null,null,null,null,null,null,null,null,null,null,null,null,null,null,null,null,null,null,null,null,null,null,null,null,null,null,null,null,null,null,null,null,null,null,0,{"$error":"#DIV/0!"},1,null,null,null,"Selalu bersyukur, selalu berdoa sebelum melakukan kegiatan, toleran pada agama yang berbeda dan perlu meningkatkan ketaatan beribadah serta selalu bersikap santun, peduli,  percaya diri, dan perlu meningkatkan sikap jujur, disiplin, dan tanggungjawab"]
[27,1159,"Muhammad Rizky Adhitya",null,null,null,null,null,null,null,null,null,null,null,null,null,null,null,null,null,null,null,null,null,null,null,null,null,null,null,null,null,null,null,null,null,null,null,null,0,{"$error":"#DIV/0!"},1,null,null,null,"Selalu bersyukur, selalu berdoa sebelum melakukan kegiatan, toleran pada agama yang berbeda dan perlu meningkatkan ketaatan beribadah serta selalu bersikap santun, peduli,  percaya diri, dan perlu meningkatkan sikap jujur, disiplin, dan tanggungjawab"]
[28,1161,"Muhammad Zidane",null,null,null,null,null,null,null,null,null,null,null,null,null,null,null,null,null,null,null,null,null,null,null,null,null,null,null,null,null,null,null,null,null,null,null,null,0,{"$error":"#DIV/0!"},1,null,null,null,"Selalu bersyukur, selalu berdoa sebelum melakukan kegiatan, toleran pada agama yang berbeda dan perlu meningkatkan ketaatan beribadah serta selalu bersikap santun, peduli,  percaya diri, dan perlu meningkatkan sikap jujur, disiplin, dan tanggungjawab"]
[29,1162,"Mukhamad Yusuf",null,null,null,null,null,null,null,null,null,null,null,null,null,null,null,null,null,null,null,null,null,null,null,null,null,null,null,null,null,null,null,null,null,null,null,null,0,{"$error":"#DIV/0!"},1,null,null,null,"Selalu bersyukur, selalu berdoa sebelum melakukan kegiatan, toleran pada agama yang berbeda dan perlu meningkatkan ketaatan beribadah serta selalu bersikap santun, peduli,  percaya diri, dan perlu meningkatkan sikap jujur, disiplin, dan tanggungjawab"]
[30,"0958","Nur Hakim Hasan",null,null,null,null,null,null,null,null,null,null,null,null,null,null,null,null,null,null,null,null,null,null,null,null,null,null,null,null,null,null,null,null,null,null,null,null,0,{"$error":"#DIV/0!"},1,null,null,null,"Selalu bersyukur, selalu berdoa sebelum melakukan kegiatan, toleran pada agama yang berbeda dan perlu meningkatkan ketaatan beribadah serta selalu bersikap santun, peduli,  percaya diri, dan perlu meningkatkan sikap jujur, disiplin, dan tanggungjawab"]
[31,1172,"Raenaldi Ferryan Chandra",null,null,null,null,null,null,null,null,null,null,null,null,null,null,null,null,null,null,null,null,null,null,null,null,null,null,null,null,null,null,null,null,null,null,null,null,0,{"$error":"#DIV/0!"},1,null,null,null,"Selalu bersyukur, selalu berdoa sebelum melakukan kegiatan, toleran pada agama yang berbeda dan perlu meningkatkan ketaatan beribadah serta selalu bersikap santun, peduli,  percaya diri, dan perlu meningkatkan sikap jujur, disiplin, dan tanggungjawab"]
[32,1174,"Rahadani Ridho Pratama",null,null,null,null,null,null,null,null,null,null,null,null,null,null,null,null,null,null,null,null,null,null,null,null,null,null,null,null,null,null,null,null,null,null,null,null,0,{"$error":"#DIV/0!"},1,null,null,null,"Selalu bersyukur, selalu berdoa sebelum melakukan kegiatan, toleran pada agama yang berbeda dan perlu meningkatkan ketaatan beribadah serta selalu bersikap santun, peduli,  percaya diri, dan perlu meningkatkan sikap jujur, disiplin, dan tanggungjawab"]
[33,1178,"Rangga Eka Parbo",null,null,null,null,null,null,null,null,null,null,null,null,null,null,null,null,null,null,null,null,null,null,null,null,null,null,null,null,null,null,null,null,null,null,null,null,0,{"$error":"#DIV/0!"},1,null,null,null,"Selalu bersyukur, selalu berdoa sebelum melakukan kegiatan, toleran pada agama yang berbeda dan perlu meningkatkan ketaatan beribadah serta selalu bersikap santun, peduli,  percaya diri, dan perlu meningkatkan sikap jujur, disiplin, dan tanggungjawab"]
[34,1180,"Ravi Dwi Aryanto",null,null,null,null,null,null,null,null,null,null,null,null,null,null,null,null,null,null,null,null,null,null,null,null,null,null,null,null,null,null,null,null,null,null,null,null,0,{"$error":"#DIV/0!"},1,null,null,null,"Selalu bersyukur, selalu berdoa sebelum melakukan kegiatan, toleran pada agama yang berbeda dan perlu meningkatkan ketaatan beribadah serta selalu bersikap santun, peduli,  percaya diri, dan perlu meningkatkan sikap jujur, disiplin, dan tanggungjawab"]
[35,1183,"Reza Aditya",null,null,null,null,null,null,null,null,null,null,null,null,null,null,null,null,null,null,null,null,null,null,null,null,null,null,null,null,null,null,null,null,null,null,null,null,0,{"$error":"#DIV/0!"},1,null,null,null,"Selalu bersyukur, selalu berdoa sebelum melakukan kegiatan, toleran pada agama yang berbeda dan perlu meningkatkan ketaatan beribadah serta selalu bersikap santun, peduli,  percaya diri, dan perlu meningkatkan sikap jujur, disiplin, dan tanggungjawab"]
[36,1185,"Rifaldi",null,null,null,null,null,null,null,null,null,null,null,null,null,null,null,null,null,null,null,null,null,null,null,null,null,null,null,null,null,null,null,null,null,null,null,null,0,{"$error":"#DIV/0!"},1,null,null,null,"Selalu bersyukur, selalu berdoa sebelum melakukan kegiatan, toleran pada agama yang berbeda dan perlu meningkatkan ketaatan beribadah serta selalu bersikap santun, peduli,  percaya diri, dan perlu meningkatkan sikap jujur, disiplin, dan tanggungjawab"]
[37,1197,"Rudi Anto",null,null,null,null,null,null,null,null,null,null,null,null,null,null,null,null,null,null,null,null,null,null,null,null,null,null,null,null,null,null,null,null,null,null,null,null,0,{"$error":"#DIV/0!"},1,null,null,null,"Selalu bersyukur, selalu berdoa sebelum melakukan kegiatan, toleran pada agama yang berbeda dan perlu meningkatkan ketaatan beribadah serta selalu bersikap santun, peduli,  percaya diri, dan perlu meningkatkan sikap jujur, disiplin, dan tanggungjawab"]
[38,1203,"Sephia Asyhakaila",null,null,null,null,null,null,null,null,null,null,null,null,null,null,null,null,null,null,null,null,null,null,null,null,null,null,null,null,null,null,null,null,null,null,null,null,0,{"$error":"#DIV/0!"},1,null,null,null,"Selalu bersyukur, selalu berdoa sebelum melakukan kegiatan, toleran pada agama yang berbeda dan perlu meningkatkan ketaatan beribadah serta selalu bersikap santun, peduli,  percaya diri, dan perlu meningkatkan sikap jujur, disiplin, dan tanggungjawab"]
[39,1217,"Teddy Chandra Pratama",null,null,null,null,null,null,null,null,null,null,null,null,null,null,null,null,null,null,null,null,null,null,null,null,null,null,null,null,null,null,null,null,null,null,null,null,0,{"$error":"#DIV/0!"},1,null,null,null,"Selalu bersyukur, selalu berdoa sebelum melakukan kegiatan, toleran pada agama yang berbeda dan perlu meningkatkan ketaatan beribadah serta selalu bersikap santun, peduli,  percaya diri, dan perlu meningkatkan sikap jujur, disiplin, dan tanggungjawab"]
[40,1561,"Tiyas Harini",null,null,null,null,null,null,null,null,null,null,null,null,null,null,null,null,null,null,null,null,null,null,null,null,null,null,null,null,null,null,null,null,null,null,null,null,0,{"$error":"#DIV/0!"},1,null,null,null,"Selalu bersyukur, selalu berdoa sebelum melakukan kegiatan, toleran pada agama yang berbeda dan perlu meningkatkan ketaatan beribadah serta selalu bersikap santun, peduli,  percaya diri, dan perlu meningkatkan sikap jujur, disiplin, dan tanggungjawab"]
[41,1225,"Yohanes Rega Febriano",null,null,null,null,null,null,null,null,null,null,null,null,null,null,null,null,null,null,null,null,null,null,null,null,null,null,null,null,null,null,null,null,null,null,null,null,0,{"$error":"#DIV/0!"},1,null,null,null,"Selalu bersyukur, selalu berdoa sebelum melakukan kegiatan, toleran pada agama yang berbeda dan perlu meningkatkan ketaatan beribadah serta selalu bersikap santun, peduli,  percaya diri, dan perlu meningkatkan sikap jujur, disiplin, dan tanggungjawab"]
[42]
[43]
[44]
[]
[null,null,null,null,null,null,null,null,null,null,null,null,null,null,null,null,null,null,null,null,null,null,null,null,null,null,null,null,null,null,null,null,null,null,null,null,null,null,null,null,{"$f":"rapot!M69","v":"Jakarta, 22 Desember 2017"}]
[null,null,null,null,null,null,null,null,null,null,null,null,null,null,null,null,null,null,null,null,null,null,null,null,null,null,null,null,null,null,null,null,null,null,null,null,null,null,null,null,"Walikelas,"]
[]
[]
[]
[null,null,null,null,null,null,null,null,null,null,null,null,null,null,null,null,null,null,null,null,null,null,null,null,null,null,null,null,null,null,null,null,null,null,null,null,null,null,null,null,{"$f":"rapot!M75","v":"NUR AINI, S.Psi"}]

{"sheet":"deskripsi","index":2,"n_rows":48,"n_cols":37,"rows_kept":48,"cut":false,"hidden":false,"merged":[[2,35,2,36],[2,15,2,16],[2,17,2,18],[2,19,2,20],[2,21,2,22],[2,23,2,24],[2,25,2,26],[2,27,2,28],[2,29,2,30],[2,33,2,34],[2,31,2,32],[2,13,2,14],[2,3,2,4],[2,5,2,6],[2,7,2,8],[2,9,2,10],[2,11,2,12]]}
[]
[]
["No.","NIS","Nama Siswa",{"$f":"leger!D4","v":"PAI"},null,{"$f":"leger!F4","v":"PKN"},null,{"$f":"leger!H4","v":"B.Ind"},null,{"$f":"leger!J4","v":"MTK"},null,{"$f":"leger!L4","v":"Sejarah"},null,{"$f":"leger!N4","v":"B.Ing"},null,{"$f":"leger!P4","v":"KWU"},null,{"$f":"leger!R4","v":"Penjasor"},null,{"$f":"leger!T4","v":"Simdig"},null,{"$f":"leger!V4","v":"P.komBisnis"},null,{"$f":"leger!X4","v":"Adm Umum"},null,{"$f":"leger!Z4","v":"Tek.Inf. Jar"},null,{"$f":"leger!AB4","v":"RBJ"},null,{"$f":"leger!AD4","v":"Adm Server"},null,{"$f":"leger!AH4","v":"PPK"},null,{"$f":"leger!AJ4","v":"Buss. English"},null,{"$f":"leger!AL4","v":"Siklus Akun"}]
[null,null,null,"Pengetahuan","Keterampilan","Pengetahuan","Keterampilan","Pengetahuan","Keterampilan","Pengetahuan","Keterampilan","Pengetahuan","Keterampilan","Pengetahuan","Keterampilan","Pengetahuan","Keterampilan","Pengetahuan","Keterampilan","Pengetahuan","Keterampilan","Pengetahuan","Keterampilan","Pengetahuan","Keterampilan","Pengetahuan","Keterampilan","Pengetahuan","Keterampilan","Pengetahuan","Keterampilan",null,null,"Pengetahuan","Keterampilan","Pengetahuan","Keterampilan"]
[1,{"$f":"leger!B6","v":1023},{"$f":"leger!C6","v":"Adi Ismail"},"contoh","contoh"]
[2,{"$f":"leger!B7","v":1025},{"$f":"leger!C7","v":"Adilla Reysan "}]
[3,{"$f":"leger!B8","v":1026},{"$f":"leger!C8","v":"Aedo Nugroho Wicaksono"}]
[4,{"$f":"leger!B9","v":1030},{"$f":"leger!C9","v":"Ahmad Syaeffullah"}]
[5,{"$f":"leger!B10","v":1043},{"$f":"leger!C10","v":"Andre Putra Pratama"}]
[6,{"$f":"leger!B11","v":1046},{"$f":"leger!C11","v":"Andy Setiawan"}]
[7,{"$f":"leger!B12","v":1051},{"$f":"leger!C12","v":"Anwar Fathoni"}]
[8,{"$f":"leger!B13","v":1052},{"$f":"leger!C13","v":"Anwar Hafid"}]
[9,{"$f":"leger!B14","v":1065},{"$f":"leger!C14","v":"Bayu Rindhita Muharram"}]
[10,{"$f":"leger!B15","v":1066},{"$f":"leger!C15","v":"Berliana Syela Fajrin"}]
[11,{"$f":"leger!B16","v":1069},{"$f":"leger!C16","v":"Danang Busro Cahyo Bekti"}]
[12,{"$f":"leger!B17","v":1091},{"$f":"leger!C17","v":"Faisal Rakhmadhani"}]
[13,{"$f":"leger!B18","v":1093},{"$f":"leger!C18","v":"Fajar Tri Admaja"}]
[14,{"$f":"leger!B19","v":1097},{"$f":"leger!C19","v":"Farhan Maulana"}]
[15,{"$f":"leger!B20","v":1108},{"$f":"leger!C20","v":"Gusniawan"}]
[16,{"$f":"leger!B21","v":1113},{"$f":"leger!C21","v":"Ikbal Maulana Razaaq"}]
[17,{"$f":"leger!B22","v":1115},{"$f":"leger!C22","v":"Imaratif Sapria Nugroho"}]
[18,{"$f":"leger!B23","v":1118},{"$f":"leger!C23","v":"Johan Iryadi"}]
[19,{"$f":"leger!B24","v":1130},{"$f":"leger!C24","v":"Mas Yuni"}]
[20,{"$f":"leger!B25","v":1157},{"$f":"leger!C25","v":"Mohamad Risky Hidayat"}]
[21,{"$f":"leger!B26","v":1136},{"$f":"leger!C26","v":"Muhamad Arip Fazarsyah"}]
[22,{"$f":"leger!B27","v":1138},{"$f":"leger!C27","v":"Muhamad Hadi Saputra"}]
[23,{"$f":"leger!B28","v":1126},{"$f":"leger!C28","v":"Muhammad Rasyad Zafran Firnadi"}]
[24,{"$f":"leger!B29","v":1154},{"$f":"leger!C29","v":"Muhammad Rifaldy"}]
[25,{"$f":"leger!B30","v":1562},{"$f":"leger!C30","v":"Muhammad Rifky Arief Wichaksono"}]
[26,{"$f":"leger!B31","v":1158},{"$f":"leger!C31","v":"Muhammad Rizky"}]
[27,{"$f":"leger!B32","v":1159},{"$f":"leger!C32","v":"Muhammad Rizky Adhitya"}]
[28,{"$f":"leger!B33","v":1161},{"$f":"leger!C33","v":"Muhammad Zidane"}]
[29,{"$f":"leger!B34","v":1162},{"$f":"leger!C34","v":"Mukhamad Yusuf"}]
[30,{"$f":"leger!B35","v":"0958"},{"$f":"leger!C35","v":"Nur Hakim Hasan"}]
[31,{"$f":"leger!B36","v":1172},{"$f":"leger!C36","v":"Raenaldi Ferryan Chandra"}]
[32,{"$f":"leger!B37","v":1174},{"$f":"leger!C37","v":"Rahadani Ridho Pratama"}]
[33,{"$f":"leger!B38","v":1178},{"$f":"leger!C38","v":"Rangga Eka Parbo"}]
[34,{"$f":"leger!B39","v":1180},{"$f":"leger!C39","v":"Ravi Dwi Aryanto"}]
[35,{"$f":"leger!B40","v":1183},{"$f":"leger!C40","v":"Reza Aditya"}]
[36,{"$f":"leger!B41","v":1185},{"$f":"leger!C41","v":"Rifaldi"}]
[37,{"$f":"leger!B42","v":1197},{"$f":"leger!C42","v":"Rudi Anto"}]
[38,{"$f":"leger!B43","v":1203},{"$f":"leger!C43","v":"Sephia Asyhakaila"}]
[39,{"$f":"leger!B44","v":1217},{"$f":"leger!C44","v":"Teddy Chandra Pratama"}]
[40,{"$f":"leger!B45","v":1561},{"$f":"leger!C45","v":"Tiyas Harini"}]
[41,{"$f":"leger!B46","v":1225},{"$f":"leger!C46","v":"Yohanes Rega Febriano"}]
[42,{"$f":"leger!B47","v":0},{"$f":"leger!C47","v":0}]
[43,{"$f":"leger!B48","v":0},{"$f":"leger!C48","v":0}]
[44,{"$f":"leger!B49","v":0},{"$f":"leger!C49","v":0}]

{"sheet":"Ekskul","index":3,"n_rows":47,"n_cols":12,"rows_kept":47,"cut":false,"hidden":false,"merged":[[1,0,2,0],[1,1,2,1],[1,2,2,2],[1,6,1,8],[1,9,1,11],[1,3,1,5]]}
[]
["No.","NIS","Nama Siswa","Kegiatan Ekskul",null,null,"Nilai Ekskul",null,null,"Keterangan"]
[null,null,null,"Ekskul Wajib","Ekskul Tambahan 1","Ekskul Tambahan 2","Ekskul Wajib","Ekskul Tambahan 1","Ekskul Tambahan 2","Ekskul Wajib","Ekskul Tambahan 1","Ekskul Tambahan 2"]
[1,{"$f":"leger!B6","v":1023},{"$f":"leger!C6","v":"Adi Ismail"},"Praja Muda Karana (Pramuka)","Silat",null,"A","B",null,{"$f":"IF(G4=\"A\",\"Melaksanakan kegiatan pramuka dengan Sangat Baik\",IF(G4=\"B\",\"Melaksanakan kegiatan pramuka dengan Baik\",IF(G4=\"C\",\"Melaksanakan kegiatan pramuka dengan Cukup Baik\",\"\")))","v":"Melaksanakan kegiatan pramuka dengan Sangat Baik"},{"$f":"IF(H4=\"A\",\"Melaksanakan kegiatan \" &E4& \" dengan Sangat Baik\",IF(H4=\"B\",\"Melaksanakan kegiatan \" &E4& \" dengan Baik\",IF(H4=\"C\",\"Melaksanakan kegiatan \" &E4& \" dengan Cukup Baik\",\"\")))","v":"Melaksanakan kegiatan Silat dengan Baik"},{"$f":"IF(I4=\"A\",\"Melaksanakan kegiatan \" &F4& \" dengan Sangat Baik\",IF(I4=\"B\",\"Melaksanakan kegiatan \" &F4& \" dengan Baik\",IF(I4=\"C\",\"Melaksanakan kegiatan \" &F4& \" dengan Cukup Baik\",\"\")))","v":""}]
[2,{"$f":"leger!B7","v":1025},{"$f":"leger!C7","v":"Adilla Reysan "},null,null,null,null,null,null,{"$f":"IF(G5=\"A\",\"Melaksanakan kegiatan pramuka dengan Sangat Baik\",IF(G5=\"B\",\"Melaksanakan kegiatan pramuka dengan Baik\",IF(G5=\"C\",\"Melaksanakan kegiatan pramuka dengan Cukup Baik\",\"\")))","v":""},{"$f":"IF(H5=\"A\",\"Melaksanakan kegiatan \" &E5& \" dengan Sangat Baik\",IF(H5=\"B\",\"Melaksanakan kegiatan \" &E5& \" dengan Baik\",IF(H5=\"C\",\"Melaksanakan kegiatan \" &E5& \" dengan Cukup Baik\",\"\")))","v":""},{"$f":"IF(I5=\"A\",\"Melaksanakan kegiatan \" &F5& \" dengan Sangat Baik\",IF(I5=\"B\",\"Melaksanakan kegiatan \" &F5& \" dengan Baik\",IF(I5=\"C\",\"Melaksanakan kegiatan \" &F5& \" dengan Cukup Baik\",\"\")))","v":""}]
[3,{"$f":"leger!B8","v":1026},{"$f":"leger!C8","v":"Aedo Nugroho Wicaksono"},null,null,null,null,null,null,{"$f":"IF(G6=\"A\",\"Melaksanakan kegiatan pramuka dengan Sangat Baik\",IF(G6=\"B\",\"Melaksanakan kegiatan pramuka dengan Baik\",IF(G6=\"C\",\"Melaksanakan kegiatan pramuka dengan Cukup Baik\",\"\")))","v":""},"",""]
[4,{"$f":"leger!B9","v":1030},{"$f":"leger!C9","v":"Ahmad Syaeffullah"},null,null,null,null,null,null,"","",""]
[5,{"$f":"leger!B10","v":1043},{"$f":"leger!C10","v":"Andre Putra Pratama"},null,null,null,null,null,null,"","",""]
[6,{"$f":"leger!B11","v":1046},{"$f":"leger!C11","v":"Andy Setiawan"},null,null,null,null,null,null,"","",""]
[7,{"$f":"leger!B12","v":1051},{"$f":"leger!C12","v":"Anwar Fathoni"},null,null,null,null,null,null,"","",""]
[8,{"$f":"leger!B13","v":1052},{"$f":"leger!C13","v":"Anwar Hafid"},null,null,null,null,null,null,"","",""]
[9,{"$f":"leger!B14","v":1065},{"$f":"leger!C14","v":"Bayu Rindhita Muharram"},null,null,null,null,null,null,"","",""]
[10,{"$f":"leger!B15","v":1066},{"$f":"leger!C15","v":"Berliana Syela Fajrin"},null,null,null,null,null,null,"","",""]
[11,{"$f":"leger!B16","v":1069},{"$f":"leger!C16","v":"Danang Busro Cahyo Bekti"},null,null,null,null,null,null,"","",""]
[12,{"$f":"leger!B17","v":1091},{"$f":"leger!C17","v":"Faisal Rakhmadhani"},null,null,null,null,null,null,"","",""]
[13,{"$f":"leger!B18","v":1093},{"$f":"leger!C18","v":"Fajar Tri Admaja"},null,null,null,null,null,null,"","",""]
[14,{"$f":"leger!B19","v":1097},{"$f":"leger!C19","v":"Farhan Maulana"},null,null,null,null,null,null,"","",""]
[15,{"$f":"leger!B20","v":1108},{"$f":"leger!C20","v":"Gusniawan"},null,null,null,null,null,null,"","",""]
[16,{"$f":"leger!B21","v":1113},{"$f":"leger!C21","v":"Ikbal Maulana Razaaq"},null,null,null,null,null,null,"","",""]
[17,{"$f":"leger!B22","v":1115},{"$f":"leger!C22","v":"Imaratif Sapria Nugroho"},null,null,null,null,null,null,"","",""]
[18,{"$f":"leger!B23","v":1118},{"$f":"leger!C23","v":"Johan Iryadi"},null,null,null,null,null,null,"","",""]
[19,{"$f":"leger!B24","v":1130},{"$f":"leger!C24","v":"Mas Yuni"},null,null,null,null,null,null,"","",""]
[20,{"$f":"leger!B25","v":1157},{"$f":"leger!C25","v":"Mohamad Risky Hidayat"},null,null,null,null,null,null,"","",""]
[21,{"$f":"leger!B26","v":1136},{"$f":"leger!C26","v":"Muhamad Arip Fazarsyah"},null,null,null,null,null,null,"","",""]
[22,{"$f":"leger!B27","v":1138},{"$f":"leger!C27","v":"Muhamad Hadi Saputra"},null,null,null,null,null,null,"","",""]
[23,{"$f":"leger!B28","v":1126},{"$f":"leger!C28","v":"Muhammad Rasyad Zafran Firnadi"},null,null,null,null,null,null,"","",""]
[24,{"$f":"leger!B29","v":1154},{"$f":"leger!C29","v":"Muhammad Rifaldy"},null,null,null,null,null,null,"","",""]
[25,{"$f":"leger!B30","v":1562},{"$f":"leger!C30","v":"Muhammad Rifky Arief Wichaksono"},null,null,null,null,null,null,"","",""]
[26,{"$f":"leger!B31","v":1158},{"$f":"leger!C31","v":"Muhammad Rizky"},null,null,null,null,null,null,"","",""]
[27,{"$f":"leger!B32","v":1159},{"$f":"leger!C32","v":"Muhammad Rizky Adhitya"},null,null,null,null,null,null,"","",""]
[28,{"$f":"leger!B33","v":1161},{"$f":"leger!C33","v":"Muhammad Zidane"},null,null,null,null,null,null,"","",""]
[29,{"$f":"leger!B34","v":1162},{"$f":"leger!C34","v":"Mukhamad Yusuf"},null,null,null,null,null,null,"","",""]
[30,{"$f":"leger!B35","v":"0958"},{"$f":"leger!C35","v":"Nur Hakim Hasan"},null,null,null,null,null,null,"","",""]
[31,{"$f":"leger!B36","v":1172},{"$f":"leger!C36","v":"Raenaldi Ferryan Chandra"},null,null,null,null,null,null,"","",""]
[32,{"$f":"leger!B37","v":1174},{"$f":"leger!C37","v":"Rahadani Ridho Pratama"},null,null,null,null,null,null,"","",""]
[33,{"$f":"leger!B38","v":1178},{"$f":"leger!C38","v":"Rangga Eka Parbo"},null,null,null,null,null,null,"","",""]
[34,{"$f":"leger!B39","v":1180},{"$f":"leger!C39","v":"Ravi Dwi Aryanto"},null,null,null,null,null,null,"","",""]
[35,{"$f":"leger!B40","v":1183},{"$f":"leger!C40","v":"Reza Aditya"},null,null,null,null,null,null,"","",""]
[36,{"$f":"leger!B41","v":1185},{"$f":"leger!C41","v":"Rifaldi"},null,null,null,null,null,null,"","",""]
[37,{"$f":"leger!B42","v":1197},{"$f":"leger!C42","v":"Rudi Anto"},null,null,null,null,null,null,"","",""]
[38,{"$f":"leger!B43","v":1203},{"$f":"leger!C43","v":"Sephia Asyhakaila"},null,null,null,null,null,null,"","",""]
[39,{"$f":"leger!B44","v":1217},{"$f":"leger!C44","v":"Teddy Chandra Pratama"},null,null,null,null,null,null,"","",""]
[40,{"$f":"leger!B45","v":1561},{"$f":"leger!C45","v":"Tiyas Harini"},null,null,null,null,null,null,"","",""]
[41,{"$f":"leger!B46","v":1225},{"$f":"leger!C46","v":"Yohanes Rega Febriano"},null,null,null,null,null,null,"","",""]
[42,{"$f":"leger!B47","v":0},{"$f":"leger!C47","v":0}]
[43,{"$f":"leger!B48","v":0},{"$f":"leger!C48","v":0},null,null,null,null,null,null,"","",""]
[44,{"$f":"leger!B54","v":0},{"$f":"leger!C54","v":0},null,null,null,null,null,null,"","",""]

{"sheet":"DUDI","index":4,"n_rows":0,"n_cols":0,"rows_kept":0,"cut":false,"hidden":false,"merged":[]}

{"sheet":"Prestasi","index":5,"n_rows":47,"n_cols":12,"rows_kept":47,"cut":false,"hidden":false,"merged":[[1,9,1,11],[1,0,2,0],[1,1,2,1],[1,2,2,2],[1,3,1,5],[1,6,1,8]]}
[]
["No.","NIS","Nama Siswa","Jenis Prestasi",null,null,"Peringkat",null,null,"Keterangan"]
[null,null,null,"Prestasi 1","Prestasi 2","Prestasi 3","Prestasi 1","Prestasi 2","Prestasi 3","Prestasi 1","Prestasi 2","Prestasi 3"]
[1,{"$f":"leger!B6","v":1023},{"$f":"leger!C6","v":"Adi Ismail"},"Juara lomba lari tingkat Kecamatan",null,null,3,null,null,"lomba lari tingkat kecamatan jagakarsa"]
[2,{"$f":"leger!B7","v":1025},{"$f":"leger!C7","v":"Adilla Reysan "}]
[3,{"$f":"leger!B8","v":1026},{"$f":"leger!C8","v":"Aedo Nugroho Wicaksono"}]
[4,{"$f":"leger!B9","v":1030},{"$f":"leger!C9","v":"Ahmad Syaeffullah"}]
[5,{"$f":"leger!B10","v":1043},{"$f":"leger!C10","v":"Andre Putra Pratama"}]
[6,{"$f":"leger!B11","v":1046},{"$f":"leger!C11","v":"Andy Setiawan"}]
[7,{"$f":"leger!B12","v":1051},{"$f":"leger!C12","v":"Anwar Fathoni"}]
[8,{"$f":"leger!B13","v":1052},{"$f":"leger!C13","v":"Anwar Hafid"}]
[9,{"$f":"leger!B14","v":1065},{"$f":"leger!C14","v":"Bayu Rindhita Muharram"}]
[10,{"$f":"leger!B15","v":1066},{"$f":"leger!C15","v":"Berliana Syela Fajrin"}]
[11,{"$f":"leger!B16","v":1069},{"$f":"leger!C16","v":"Danang Busro Cahyo Bekti"}]
[12,{"$f":"leger!B17","v":1091},{"$f":"leger!C17","v":"Faisal Rakhmadhani"}]
[13,{"$f":"leger!B18","v":1093},{"$f":"leger!C18","v":"Fajar Tri Admaja"}]
[14,{"$f":"leger!B19","v":1097},{"$f":"leger!C19","v":"Farhan Maulana"}]
[15,{"$f":"leger!B20","v":1108},{"$f":"leger!C20","v":"Gusniawan"}]
[16,{"$f":"leger!B21","v":1113},{"$f":"leger!C21","v":"Ikbal Maulana Razaaq"}]
[17,{"$f":"leger!B22","v":1115},{"$f":"leger!C22","v":"Imaratif Sapria Nugroho"}]
[18,{"$f":"leger!B23","v":1118},{"$f":"leger!C23","v":"Johan Iryadi"}]
[19,{"$f":"leger!B24","v":1130},{"$f":"leger!C24","v":"Mas Yuni"}]
[20,{"$f":"leger!B25","v":1157},{"$f":"leger!C25","v":"Mohamad Risky Hidayat"}]
[21,{"$f":"leger!B26","v":1136},{"$f":"leger!C26","v":"Muhamad Arip Fazarsyah"}]
[22,{"$f":"leger!B27","v":1138},{"$f":"leger!C27","v":"Muhamad Hadi Saputra"}]
[23,{"$f":"leger!B28","v":1126},{"$f":"leger!C28","v":"Muhammad Rasyad Zafran Firnadi"}]
[24,{"$f":"leger!B29","v":1154},{"$f":"leger!C29","v":"Muhammad Rifaldy"}]
[25,{"$f":"leger!B30","v":1562},{"$f":"leger!C30","v":"Muhammad Rifky Arief Wichaksono"}]
[26,{"$f":"leger!B31","v":1158},{"$f":"leger!C31","v":"Muhammad Rizky"}]
[27,{"$f":"leger!B32","v":1159},{"$f":"leger!C32","v":"Muhammad Rizky Adhitya"}]
[28,{"$f":"leger!B33","v":1161},{"$f":"leger!C33","v":"Muhammad Zidane"}]
[29,{"$f":"leger!B34","v":1162},{"$f":"leger!C34","v":"Mukhamad Yusuf"}]
[30,{"$f":"leger!B35","v":"0958"},{"$f":"leger!C35","v":"Nur Hakim Hasan"}]
[31,{"$f":"leger!B36","v":1172},{"$f":"leger!C36","v":"Raenaldi Ferryan Chandra"}]
[32,{"$f":"leger!B37","v":1174},{"$f":"leger!C37","v":"Rahadani Ridho Pratama"}]
[33,{"$f":"leger!B38","v":1178},{"$f":"leger!C38","v":"Rangga Eka Parbo"}]
[34,{"$f":"leger!B39","v":1180},{"$f":"leger!C39","v":"Ravi Dwi Aryanto"}]
[35,{"$f":"leger!B40","v":1183},{"$f":"leger!C40","v":"Reza Aditya"}]
[36,{"$f":"leger!B41","v":1185},{"$f":"leger!C41","v":"Rifaldi"}]
[37,{"$f":"leger!B42","v":1197},{"$f":"leger!C42","v":"Rudi Anto"}]
[38,{"$f":"leger!B43","v":1203},{"$f":"leger!C43","v":"Sephia Asyhakaila"}]
[39,{"$f":"leger!B44","v":1217},{"$f":"leger!C44","v":"Teddy Chandra Pratama"}]
[40,{"$f":"leger!B45","v":1561},{"$f":"leger!C45","v":"Tiyas Harini"}]
[41,{"$f":"leger!B46","v":1225},{"$f":"leger!C46","v":"Yohanes Rega Febriano"}]
[42,{"$f":"leger!B47","v":0},{"$f":"leger!C47","v":0}]
[43,{"$f":"leger!B48","v":0},{"$f":"leger!C48","v":0}]
[44,{"$f":"leger!B54","v":0},{"$f":"leger!C54","v":0}]